{"text_format":"1","workbook":"xlsx","n_sheets":3,"sheets":["Compost Maturity","RX","GRADATIONS"],"not_rendered":{"charts":0,"images":3,"macros":1,"external_links":0,"defined_names":144,"comments":1,"pivot_tables":0},"unopened":[],"bounds":{"document_bytes":16777216,"sheet_cells":100000,"rows_first":2000,"rows_last":500,"rows_between":2000,"halvings":0,"cell_chars":16384,"cell_head_chars":4096},"cells_cut":0,"cells_raw":0,"read":"whole","date_system":"1900"}

{"sheet":"Compost Maturity","index":0,"n_rows":110,"n_cols":11,"rows_kept":110,"cut":false,"hidden":false,"merged":[[9,7,9,8],[9,3,9,4],[15,3,15,8],[13,7,13,8],[16,7,16,8],[13,3,13,4],[0,0,0,1],[95,2,95,4],[12,7,12,8],[11,3,11,4],[12,3,12,4],[11,7,11,8],[56,2,57,2],[16,3,16,4],[94,2,94,4],[35,2,35,5],[7,7,7,8],[10,7,10,8],[7,3,7,4],[8,3,8,4],[8,7,8,8],[10,3,10,4],[56,8,57,8],[41,2,41,5],[39,2,39,5],[49,3,49,5],[74,2,74,4],[51,2,51,5],[45,3,45,5],[56,5,57,5],[46,3,46,5],[56,4,57,4],[43,3,43,6],[47,3,47,5],[54,2,54,8],[110,1,110,3],[106,6,106,8],[90,1,91,8],[52,2,52,5],[72,2,72,4],[70,2,70,4],[97,2,97,4],[99,2,99,4],[106,1,106,3],[103,2,103,4],[101,2,101,4],[93,1,93,8],[92,1,92,8],[56,6,57,6],[68,2,68,7],[56,7,57,7],[37,2,37,6],[32,2,32,6],[26,2,26,6],[20,2,20,5],[14,3,14,8],[27,2,27,5],[28,2,28,5],[30,2,30,5],[33,2,33,5]]}
["TxDOT Manuals >",null,null,"Tex-110-E","Tex-128-E","Tex-129-E"]
[null,"TEXAS DEPARTMENT OF TRANSPORTATION",null,null,null,null,null,null,null,null,71]
[null,null,null,null,null,null,null,null,null,null,5]
[null,null,null,null,null,null,null,null,null,null,"TxCompMat.xlsm::42072.436123"]
[null,"COMPOST ORGANIC MATTER AND MATURITY TEST"]
[]
[null,null,null,null,null,null,null,null,{"$f":"\"File Version: \" & TEXT(MID(sn,SEARCH(\"::\",sn,1)+2,20),\"mm/dd/yy hh:mm:ss\")","v":"File Version: 03/09/15 10:28:01"}]
[null,null,"SAMPLE ID:",null,null,null,"SAMPLED DATE:"]
[null,null,"TEST NUMBER:",null,null,null,"LETTING DATE:"]
[null,null,"SAMPLE STATUS:",null,null,null,"CONTROLLING CSJ:"]
[null,null,"COUNTY:",null,null,null,"SPEC YEAR:"]
[null,null,"SAMPLED BY:",null,null,null,"SPEC ITEM:"]
[null,null,"SAMPLE LOCATION:",null,null,null,"SPECIAL PROVISION:"]
[null,null,"MATERIAL CODE:",null,null,null,"GRADE:"]
[null,null,"MATERIAL NAME:"]
[null,null,"PRODUCER:"]
[null,null,"AREA ENGINEER:",null,null,null,"PROJECT MANAGER:"]
[]
[null,null,"COURSE\\LIFT:",null,"STATION:",null,null,"DIST. FROM CL:"]
[]
[null,"»","Determining Soil pH, Tex-128-E"]
[]
[null,null,"Soil pH:",null,"Limits, (%):","5.5 - 8.5"]
[]
[null,"»","Measuring the Resistivity of Soil Materials, Tex-129-E"]
[]
[null,null,"Calculate the Soil Box Factor (SBF):"]
[null,null,"A = Area of one electrode, (cm2):"]
[null,null,"D = Distance between electrodes, (cm):"]
[]
[null,null,"Soil Box Factor (SBF) = A / D:",null,null,null,{"$f":"IF(ISERROR(G28/G29),\"\",G28/G29)","v":""}]
[]
[null,null,"Calculate the Resistivity:"]
[null,null,"Resistance using resistivity meter, (ohms):"]
[]
[null,null,"Resistivity = SBF x Resistance, (ohm-cm):",null,null,null,{"$f":"IF(ISERROR(G31*G34),\"\",G31*G34)","v":""},"Limits, (%):",5]
[]
[null,"»","Organic Matter Content, ASTM D 5268"]
[]
[null,null,"A = Original Oven Dried Sample Weight, (g):"]
[null,null,null,null,null,null,5]
[null,null,"A1 = Deleterious Material retained on No. 4 Sieve, (g):"]
[]
[null,null,null,"Organic Matter of Soils, ASTM D 2974 "]
[]
[null,null,null,"B =Oven Dried Test Specimen, (g):"]
[null,null,null,"C = Ash, (g):"]
[null,null,null,"D = Ash Content, (Cx100)/B (%):",null,null,{"$f":"IF(ISERROR(G47*100/G46),\"\",G47*100/G46)","v":""}]
[]
[null,null,null,"E = Organic Matter, 100 - D (%):",null,null,{"$f":"IF(ISERROR(100-G48),\"\",100-G48)","v":""}]
[]
[null,null,"F = Percent Deleterious Material, (A1/A)*100 (%):",null,null,null,{"$f":"IF(ISERROR(G42/G40*100),\"\",G42/G40*100)","v":""}]
[null,null,"Percent Organic Matter, (100-F)*E/100 (%):",null,null,null,{"$f":"IF(ISERROR((100-G52)*G50/100),\"\",(100-G52)*G50/100)","v":""},"Limits, (%):",{"$f":"IF(Grade=\"topsoil\",\"25-66\",\"40 - 60\")","v":"40 - 60"}]
[]
[null,"»","Particle Size Analysis - Tex-110-E"]
[]
[null,null,"Sieve Size",null,{"$f":"IF(D57=\"Cumulative\",\"Individual\",\"Cumulative\") & \" Weight Retained\"","v":"Cumulative Weight Retained"},"Cumulative Percent Retained","Lower Spec Limit, (%)","Upper Spec Limit, (%)","Within Specs."]
[null,null,null,{"$f":"IF(Field15=\"\",\"Individual\",Field15)&\" Weight Retained (g)\"","v":"Individual Weight Retained (g)"}]
[null,null,{"$f":"IF(ISERROR(IF(INDEX(INDIRECT(Grade),1,IF(specyear=\"1993\",3,4))=0,\"\",INDEX(INDIRECT(Grade),1,IF(specyear=\"1993\",3,4)))),\"\",IF(INDEX(INDIRECT(Grade),1,IF(specyear=\"1993\",3,4))=0,\"\",INDEX(INDIRECT(Grade),1,IF(specyear=\"1993\",3,4))))","v":""},null,{"$f":"IF($D59=\"\",\"\",$D59)","v":""},{"$f":"IF($D59=\"\",\"\",IF(RetainedMethod=\"Cumulative\",D59/Total*100,E59/Total*100))","v":""},{"$f":"IF(ISERROR(INDEX(INDIRECT(Grade),1,5)),\"\",INDEX(INDIRECT(Grade),1,5))","v":""},{"$f":"IF(ISERROR(INDEX(INDIRECT(Grade),1,6)),\"\",INDEX(INDIRECT(Grade),1,6))","v":""},{"$f":"IF($D59=\"\",\"\",IF(AND($F59<=$H59,$F59>=$G59),\"Yes\",\"No\"))","v":""}]
[null,null,{"$f":"IF(ISERROR(IF(INDEX(INDIRECT(Grade),2,IF(specyear=\"1993\",3,4))=0,\"\",INDEX(INDIRECT(Grade),2,IF(specyear=\"1993\",3,4)))),\"\",IF(INDEX(INDIRECT(Grade),2,IF(specyear=\"1993\",3,4))=0,\"\",INDEX(INDIRECT(Grade),2,IF(specyear=\"1993\",3,4))))","v":""},null,{"$f":"IF(D60=\"\",\"\",IF(RetainedMethod=\"Cumulative\",(D60-$D59),SUM(D$59:$D60)))","v":""},"",{"$f":"IF(ISERROR(INDEX(INDIRECT(Grade),2,5)),\"\",INDEX(INDIRECT(Grade),2,5))","v":""},{"$f":"IF(ISERROR(INDEX(INDIRECT(Grade),2,6)),\"\",INDEX(INDIRECT(Grade),2,6))","v":""},{"$f":"IF($D60=\"\",\"\",IF(AND($F60<=$H60,$F60>=$G60),\"Yes\",\"No\"))","v":""}]
[null,null,{"$f":"IF(ISERROR(IF(INDEX(INDIRECT(Grade),3,IF(specyear=\"1993\",3,4))=0,\"\",INDEX(INDIRECT(Grade),3,IF(specyear=\"1993\",3,4)))),\"\",IF(INDEX(INDIRECT(Grade),3,IF(specyear=\"1993\",3,4))=0,\"\",INDEX(INDIRECT(Grade),3,IF(specyear=\"1993\",3,4))))","v":""},null,{"$f":"IF(D61=\"\",\"\",IF(RetainedMethod=\"Cumulative\",(D61-$D60),SUM(D$59:$D61)))","v":""},"",{"$f":"IF(ISERROR(INDEX(INDIRECT(Grade),3,5)),\"\",INDEX(INDIRECT(Grade),3,5))","v":""},{"$f":"IF(ISERROR(INDEX(INDIRECT(Grade),3,6)),\"\",INDEX(INDIRECT(Grade),3,6))","v":""},""]
[null,null,{"$f":"IF(ISERROR(IF(INDEX(INDIRECT(Grade),4,IF(specyear=\"1993\",3,4))=0,\"\",INDEX(INDIRECT(Grade),4,IF(specyear=\"1993\",3,4)))),\"\",IF(INDEX(INDIRECT(Grade),4,IF(specyear=\"1993\",3,4))=0,\"\",INDEX(INDIRECT(Grade),4,IF(specyear=\"1993\",3,4))))","v":""},null,{"$f":"IF(D62=\"\",\"\",IF(RetainedMethod=\"Cumulative\",(D62-$D61),SUM(D$59:$D62)))","v":""},"",{"$f":"IF(ISERROR(INDEX(INDIRECT(Grade),4,5)),\"\",INDEX(INDIRECT(Grade),4,5))","v":""},{"$f":"IF(ISERROR(INDEX(INDIRECT(Grade),4,6)),\"\",INDEX(INDIRECT(Grade),4,6))","v":""},""]
[null,null,{"$f":"IF(ISERROR(IF(INDEX(INDIRECT(Grade),5,IF(specyear=\"1993\",3,4))=0,\"\",INDEX(INDIRECT(Grade),5,IF(specyear=\"1993\",3,4)))),\"\",IF(INDEX(INDIRECT(Grade),5,IF(specyear=\"1993\",3,4))=0,\"\",INDEX(INDIRECT(Grade),5,IF(specyear=\"1993\",3,4))))","v":""},null,{"$f":"IF(D63=\"\",\"\",IF(RetainedMethod=\"Cumulative\",(D63-$D62),SUM(D$59:$D63)))","v":""},"",{"$f":"IF(ISERROR(INDEX(INDIRECT(Grade),5,5)),\"\",INDEX(INDIRECT(Grade),5,5))","v":""},{"$f":"IF(ISERROR(INDEX(INDIRECT(Grade),5,6)),\"\",INDEX(INDIRECT(Grade),5,6))","v":""},""]
[null,null,{"$f":"IF(ISERROR(IF(INDEX(INDIRECT(Grade),6,IF(specyear=\"1993\",3,4))=0,\"\",INDEX(INDIRECT(Grade),6,IF(specyear=\"1993\",3,4)))),\"\",IF(INDEX(INDIRECT(Grade),6,IF(specyear=\"1993\",3,4))=0,\"\",INDEX(INDIRECT(Grade),6,IF(specyear=\"1993\",3,4))))","v":""},null,{"$f":"IF(D64=\"\",\"\",IF(RetainedMethod=\"Cumulative\",(D64-$D63),SUM(D$59:$D64)))","v":""},"",{"$f":"IF(ISERROR(INDEX(INDIRECT(Grade),6,5)),\"\",INDEX(INDIRECT(Grade),6,5))","v":""},{"$f":"IF(ISERROR(INDEX(INDIRECT(Grade),6,6)),\"\",INDEX(INDIRECT(Grade),6,6))","v":""},""]
[null,null,{"$f":"IF(ISERROR(IF(INDEX(INDIRECT(Grade),7,IF(specyear=\"1993\",3,4))=0,\"\",INDEX(INDIRECT(Grade),7,IF(specyear=\"1993\",3,4)))),\"\",IF(INDEX(INDIRECT(Grade),7,IF(specyear=\"1993\",3,4))=0,\"\",INDEX(INDIRECT(Grade),7,IF(specyear=\"1993\",3,4))))","v":""},null,{"$f":"IF(D65=\"\",\"\",IF(RetainedMethod=\"Cumulative\",(D65-$D64),SUM(D$59:$D65)))","v":""},"",{"$f":"IF(ISERROR(INDEX(INDIRECT(Grade),7,5)),\"\",INDEX(INDIRECT(Grade),7,5))","v":""},{"$f":"IF(ISERROR(INDEX(INDIRECT(Grade),7,6)),\"\",INDEX(INDIRECT(Grade),7,6))","v":""},""]
[null,null,{"$f":"IF(RetainedMethod=\"cumulative\",\"Total:\",\"-\" & OFFSET(C66,-(COUNTBLANK(SieveSize)+1),0))","v":"-"}]
[null,null,"Total:",{"$f":"IF(COUNTBLANK(D59:D66)=8,\"\",IF(ISERROR(IF(RetainedMethod=\"Cumulative\",Pan,SUM(D59:D66))),\"\",IF(RetainedMethod=\"Cumulative\",Pan,SUM(D59:D66))))","v":""}]
[]
[null,"»","SOLVITA™ Compost Maturity Test "]
[]
[null,null,"Ammonia Test Result, (NH3):"]
[]
[null,null,"Carbon Dioxide Test Result, (CO2):"]
[]
[null,null,"SOLVITA Maturity Index:",null,null,{"$f":"IF(ISERROR(VLOOKUP(Ammonia,datarange,CARBON+2,FALSE)),\"\",VLOOKUP(Ammonia,datarange,CARBON+2,FALSE))","v":""},"Limits, (%):","7-8"]
[]
[]
[]
[]
[]
[]
[]
[]
[]
[]
[]
[]
[]
[]
[null,"Remarks:",{"$f":"NOW()","v":"2015-06-23T14:58:11.930"}]
[]
[]
[]
[]
[null,"Test Method:","Tested By:",null,null,"Tested Date:"]
[null,"TX110"]
[]
[null,"TX128"]
[]
[null,"TX129"]
[]
[null,"ASTM D-5268"]
[]
[null,"TXCOMPMAT"]
[]
[null,"Test Stamp Code:",null,null,"Omit Test:","Completed Date:","Reviewed By:"]
[]
[null,"Locked By:","TxDOT:","District:","Area:"]
[]
[null,"Authorized By:",null,null,"Authorized Date:"]

{"sheet":"RX","index":1,"n_rows":79,"n_cols":9,"rows_kept":79,"cut":false,"hidden":true,"merged":[]}
[77]
["Fld_nbr","Value","Desc_1","Desc_2","Desc_3","Desc_4","Desc_5","Desc_6","Desc_7"]
[1,{"$f":"IF('Compost Maturity'!$B$91=\"\",\"\",'Compost Maturity'!$B$91)","v":""},{"$f":"'Compost Maturity'!$B$90","v":"Remarks:"}]
[2,{"$f":"IF('Compost Maturity'!$D$19=\"\",\"\",'Compost Maturity'!$D$19)","v":""},{"$f":"IF('Compost Maturity'!$C$19=\"\",\"\",'Compost Maturity'!$C$19)","v":"COURSE\\LIFT:"}]
[3,{"$f":"IF('Compost Maturity'!$C$96=\"\",\"\",'Compost Maturity'!$C$96)","v":""},"Tested By ",{"$f":"IF('Compost Maturity'!$B$96=\"\",\"\",'Compost Maturity'!$B$96)","v":"TX110"}]
[4,{"$f":"IF('Compost Maturity'!$F$96=\"\",\"\",'Compost Maturity'!$F$96)","v":""},"Tested Date ",{"$f":"IF('Compost Maturity'!$B$96=\"\",\"\",'Compost Maturity'!$B$96)","v":"TX110"}]
[5,{"$f":"IF('Compost Maturity'!$C$98=\"\",\"\",'Compost Maturity'!$C$98)","v":""},"Tested By ",{"$f":"IF('Compost Maturity'!$B$98=\"\",\"\",'Compost Maturity'!$B$98)","v":"TX128"}]
[6,{"$f":"IF('Compost Maturity'!$F$98=\"\",\"\",'Compost Maturity'!$F$98)","v":""},"Tested Date ",{"$f":"IF('Compost Maturity'!$B$98=\"\",\"\",'Compost Maturity'!$B$98)","v":"TX128"}]
[7,{"$f":"IF('Compost Maturity'!$C$100=\"\",\"\",'Compost Maturity'!$C$100)","v":""},"Tested By ",{"$f":"IF('Compost Maturity'!$B$100=\"\",\"\",'Compost Maturity'!$B$100)","v":"TX129"}]
[8,{"$f":"IF('Compost Maturity'!$F$100=\"\",\"\",'Compost Maturity'!$F$100)","v":""},"Tested Date ",{"$f":"IF('Compost Maturity'!$B$100=\"\",\"\",'Compost Maturity'!$B$100)","v":"TX129"}]
[9,{"$f":"IF('Compost Maturity'!$C$102=\"\",\"\",'Compost Maturity'!$C$102)","v":""},"Tested By ",{"$f":"IF('Compost Maturity'!$B$102=\"\",\"\",'Compost Maturity'!$B$102)","v":"ASTM D-5268"}]
[10,{"$f":"IF('Compost Maturity'!$F$102=\"\",\"\",'Compost Maturity'!$F$102)","v":""},"Tested Date ",{"$f":"IF('Compost Maturity'!$B$102=\"\",\"\",'Compost Maturity'!$B$102)","v":"ASTM D-5268"}]
[11,{"$f":"IF('Compost Maturity'!$C$104=\"\",\"\",'Compost Maturity'!$C$104)","v":""},"Tested By ",{"$f":"IF('Compost Maturity'!$B$104=\"\",\"\",'Compost Maturity'!$B$104)","v":"TXCOMPMAT"}]
[12,{"$f":"IF('Compost Maturity'!$F$104=\"\",\"\",'Compost Maturity'!$F$104)","v":""},"Tested Date ",{"$f":"IF('Compost Maturity'!$B$104=\"\",\"\",'Compost Maturity'!$B$104)","v":"TXCOMPMAT"}]
[13,{"$f":"IF('Compost Maturity'!$D$23=\"\",\"\",'Compost Maturity'!$D$23)","v":""},{"$f":"IF('Compost Maturity'!$C$21=\"\",\"\",'Compost Maturity'!$C$21)","v":"Determining Soil pH, Tex-128-E"},{"$f":"IF('Compost Maturity'!$C$23=\"\",\"\",'Compost Maturity'!$C$23)","v":"Soil pH:"}]
[14,{"$f":"IF('Compost Maturity'!$F$23=\"\",\"\",'Compost Maturity'!$F$23)","v":"5.5 - 8.5"},{"$f":"IF('Compost Maturity'!$C$21=\"\",\"\",'Compost Maturity'!$C$21)","v":"Determining Soil pH, Tex-128-E"},{"$f":"IF('Compost Maturity'!$C$23=\"\",\"\",'Compost Maturity'!$C$23)","v":"Soil pH:"},{"$f":"IF('Compost Maturity'!$E$23=\"\",\"\",'Compost Maturity'!$E$23)","v":"Limits, (%):"}]
[15,{"$f":"IF('Compost Maturity'!$G$28=\"\",\"\",'Compost Maturity'!$G$28)","v":""},{"$f":"IF('Compost Maturity'!$C$27=\"\",\"\",'Compost Maturity'!$C$27)","v":"Calculate the Soil Box Factor (SBF):"},{"$f":"IF('Compost Maturity'!$C$28=\"\",\"\",'Compost Maturity'!$C$28)","v":"A = Area of one electrode, (cm2):"}]
[16,{"$f":"IF('Compost Maturity'!$G$29=\"\",\"\",'Compost Maturity'!$G$29)","v":""},{"$f":"IF('Compost Maturity'!$C$27=\"\",\"\",'Compost Maturity'!$C$27)","v":"Calculate the Soil Box Factor (SBF):"},{"$f":"IF('Compost Maturity'!$C$29=\"\",\"\",'Compost Maturity'!$C$29)","v":"D = Distance between electrodes, (cm):"}]
[17,{"$f":"IF('Compost Maturity'!$G$31=\"\",\"\",'Compost Maturity'!$G$31)","v":""},{"$f":"IF('Compost Maturity'!$C$27=\"\",\"\",'Compost Maturity'!$C$27)","v":"Calculate the Soil Box Factor (SBF):"},{"$f":"IF('Compost Maturity'!$C$31=\"\",\"\",'Compost Maturity'!$C$31)","v":"Soil Box Factor (SBF) = A / D:"}]
[18,{"$f":"IF('Compost Maturity'!$G$34=\"\",\"\",'Compost Maturity'!$G$34)","v":""},{"$f":"IF('Compost Maturity'!$C$33=\"\",\"\",'Compost Maturity'!$C$33)","v":"Calculate the Resistivity:"},{"$f":"IF('Compost Maturity'!$C$34=\"\",\"\",'Compost Maturity'!$C$34)","v":"Resistance using resistivity meter, (ohms):"}]
[19,{"$f":"IF('Compost Maturity'!$G$36=\"\",\"\",'Compost Maturity'!$G$36)","v":""},{"$f":"IF('Compost Maturity'!$C$33=\"\",\"\",'Compost Maturity'!$C$33)","v":"Calculate the Resistivity:"},{"$f":"IF('Compost Maturity'!$C$36=\"\",\"\",'Compost Maturity'!$C$36)","v":"Resistivity = SBF x Resistance, (ohm-cm):"}]
[20,{"$f":"IF('Compost Maturity'!$I$36=\"\",\"\",'Compost Maturity'!$I$36)","v":5},{"$f":"IF('Compost Maturity'!$C$33=\"\",\"\",'Compost Maturity'!$C$33)","v":"Calculate the Resistivity:"},{"$f":"IF('Compost Maturity'!$C$36=\"\",\"\",'Compost Maturity'!$C$36)","v":"Resistivity = SBF x Resistance, (ohm-cm):"},{"$f":"IF('Compost Maturity'!$H$36=\"\",\"\",'Compost Maturity'!$H$36)","v":"Limits, (%):"}]
[21,{"$f":"IF('Compost Maturity'!$G$40=\"\",\"\",'Compost Maturity'!$G$40)","v":""},{"$f":"IF('Compost Maturity'!$C$38=\"\",\"\",'Compost Maturity'!$C$38)","v":"Organic Matter Content, ASTM D 5268"},{"$f":"IF('Compost Maturity'!$C$40=\"\",\"\",'Compost Maturity'!$C$40)","v":"A = Original Oven Dried Sample Weight, (g):"}]
[22,{"$f":"IF('Compost Maturity'!$G$42=\"\",\"\",'Compost Maturity'!$G$42)","v":""},{"$f":"IF('Compost Maturity'!$C$38=\"\",\"\",'Compost Maturity'!$C$38)","v":"Organic Matter Content, ASTM D 5268"},{"$f":"IF('Compost Maturity'!$C$42=\"\",\"\",'Compost Maturity'!$C$42)","v":"A1 = Deleterious Material retained on No. 4 Sieve, (g):"}]
[23,{"$f":"IF('Compost Maturity'!$G$46=\"\",\"\",'Compost Maturity'!$G$46)","v":""},{"$f":"IF('Compost Maturity'!$D$44=\"\",\"\",'Compost Maturity'!$D$44)","v":"Organic Matter of Soils, ASTM D 2974 "},{"$f":"IF('Compost Maturity'!$D$46=\"\",\"\",'Compost Maturity'!$D$46)","v":"B =Oven Dried Test Specimen, (g):"}]
[24,{"$f":"IF('Compost Maturity'!$G$47=\"\",\"\",'Compost Maturity'!$G$47)","v":""},{"$f":"IF('Compost Maturity'!$D$44=\"\",\"\",'Compost Maturity'!$D$44)","v":"Organic Matter of Soils, ASTM D 2974 "},{"$f":"IF('Compost Maturity'!$D$47=\"\",\"\",'Compost Maturity'!$D$47)","v":"C = Ash, (g):"}]
[25,{"$f":"IF('Compost Maturity'!$G$48=\"\",\"\",'Compost Maturity'!$G$48)","v":""},{"$f":"IF('Compost Maturity'!$D$44=\"\",\"\",'Compost Maturity'!$D$44)","v":"Organic Matter of Soils, ASTM D 2974 "},{"$f":"IF('Compost Maturity'!$D$48=\"\",\"\",'Compost Maturity'!$D$48)","v":"D = Ash Content, (Cx100)/B (%):"}]
[26,{"$f":"IF('Compost Maturity'!$G$50=\"\",\"\",'Compost Maturity'!$G$50)","v":""},{"$f":"IF('Compost Maturity'!$D$44=\"\",\"\",'Compost Maturity'!$D$44)","v":"Organic Matter of Soils, ASTM D 2974 "},{"$f":"IF('Compost Maturity'!$D$50=\"\",\"\",'Compost Maturity'!$D$50)","v":"E = Organic Matter, 100 - D (%):"}]
[27,{"$f":"IF('Compost Maturity'!$G$52=\"\",\"\",'Compost Maturity'!$G$52)","v":""},{"$f":"IF('Compost Maturity'!$D$44=\"\",\"\",'Compost Maturity'!$D$44)","v":"Organic Matter of Soils, ASTM D 2974 "},{"$f":"IF('Compost Maturity'!$C$52=\"\",\"\",'Compost Maturity'!$C$52)","v":"F = Percent Deleterious Material, (A1/A)*100 (%):"}]
[28,{"$f":"IF('Compost Maturity'!$G$53=\"\",\"\",'Compost Maturity'!$G$53)","v":""},{"$f":"IF('Compost Maturity'!$D$44=\"\",\"\",'Compost Maturity'!$D$44)","v":"Organic Matter of Soils, ASTM D 2974 "},{"$f":"IF('Compost Maturity'!$C$53=\"\",\"\",'Compost Maturity'!$C$53)","v":"Percent Organic Matter, (100-F)*E/100 (%):"}]
[29,{"$f":"IF('Compost Maturity'!$I$53=\"\",\"\",'Compost Maturity'!$I$53)","v":"40 - 60"},{"$f":"IF('Compost Maturity'!$D$44=\"\",\"\",'Compost Maturity'!$D$44)","v":"Organic Matter of Soils, ASTM D 2974 "},{"$f":"IF('Compost Maturity'!$C$53=\"\",\"\",'Compost Maturity'!$C$53)","v":"Percent Organic Matter, (100-F)*E/100 (%):"},{"$f":"IF('Compost Maturity'!$H$53=\"\",\"\",'Compost Maturity'!$H$53)","v":"Limits, (%):"}]
[30,{"$f":"IF('Compost Maturity'!$D$59=\"\",\"\",'Compost Maturity'!$D$59)","v":""},{"$f":"IF('Compost Maturity'!$C$55=\"\",\"\",'Compost Maturity'!$C$55)","v":"Particle Size Analysis - Tex-110-E"},{"$f":"IF('Compost Maturity'!$D$58=\"\",\"\",'Compost Maturity'!$D$58)","v":"Individual Weight Retained (g)"},{"$f":"IF('Compost Maturity'!$C$57=\"\",\"\",'Compost Maturity'!$C$57)","v":"Sieve Size"},{"$f":"IF('Compost Maturity'!$C$59=\"\",\"\",'Compost Maturity'!$C$59)","v":""}]
[31,{"$f":"IF('Compost Maturity'!$E$59=\"\",\"\",'Compost Maturity'!$E$59)","v":""},{"$f":"IF('Compost Maturity'!$C$55=\"\",\"\",'Compost Maturity'!$C$55)","v":"Particle Size Analysis - Tex-110-E"},{"$f":"IF('Compost Maturity'!$E$57=\"\",\"\",'Compost Maturity'!$E$57)","v":"Cumulative Weight Retained"},{"$f":"IF('Compost Maturity'!$C$57=\"\",\"\",'Compost Maturity'!$C$57)","v":"Sieve Size"},{"$f":"IF('Compost Maturity'!$C$59=\"\",\"\",'Compost Maturity'!$C$59)","v":""}]
[32,{"$f":"IF('Compost Maturity'!$F$59=\"\",\"\",'Compost Maturity'!$F$59)","v":""},{"$f":"IF('Compost Maturity'!$C$55=\"\",\"\",'Compost Maturity'!$C$55)","v":"Particle Size Analysis - Tex-110-E"},{"$f":"IF('Compost Maturity'!$F$57=\"\",\"\",'Compost Maturity'!$F$57)","v":"Cumulative Percent Retained"},{"$f":"IF('Compost Maturity'!$C$57=\"\",\"\",'Compost Maturity'!$C$57)","v":"Sieve Size"},{"$f":"IF('Compost Maturity'!$C$59=\"\",\"\",'Compost Maturity'!$C$59)","v":""}]
[33,{"$f":"IF('Compost Maturity'!$G$59=\"\",\"\",'Compost Maturity'!$G$59)","v":""},{"$f":"IF('Compost Maturity'!$C$55=\"\",\"\",'Compost Maturity'!$C$55)","v":"Particle Size Analysis - Tex-110-E"},{"$f":"IF('Compost Maturity'!$G$57=\"\",\"\",'Compost Maturity'!$G$57)","v":"Lower Spec Limit, (%)"},{"$f":"IF('Compost Maturity'!$C$57=\"\",\"\",'Compost Maturity'!$C$57)","v":"Sieve Size"},{"$f":"IF('Compost Maturity'!$C$59=\"\",\"\",'Compost Maturity'!$C$59)","v":""}]
[34,{"$f":"IF('Compost Maturity'!$H$59=\"\",\"\",'Compost Maturity'!$H$59)","v":""},{"$f":"IF('Compost Maturity'!$C$55=\"\",\"\",'Compost Maturity'!$C$55)","v":"Particle Size Analysis - Tex-110-E"},{"$f":"IF('Compost Maturity'!$H$57=\"\",\"\",'Compost Maturity'!$H$57)","v":"Upper Spec Limit, (%)"},{"$f":"IF('Compost Maturity'!$C$57=\"\",\"\",'Compost Maturity'!$C$57)","v":"Sieve Size"},{"$f":"IF('Compost Maturity'!$C$59=\"\",\"\",'Compost Maturity'!$C$59)","v":""}]
[35,{"$f":"IF('Compost Maturity'!$I$59=\"\",\"\",'Compost Maturity'!$I$59)","v":""},{"$f":"IF('Compost Maturity'!$C$55=\"\",\"\",'Compost Maturity'!$C$55)","v":"Particle Size Analysis - Tex-110-E"},{"$f":"IF('Compost Maturity'!$I$57=\"\",\"\",'Compost Maturity'!$I$57)","v":"Within Specs."},{"$f":"IF('Compost Maturity'!$C$57=\"\",\"\",'Compost Maturity'!$C$57)","v":"Sieve Size"},{"$f":"IF('Compost Maturity'!$C$59=\"\",\"\",'Compost Maturity'!$C$59)","v":""}]
[36,{"$f":"IF('Compost Maturity'!$D$60=\"\",\"\",'Compost Maturity'!$D$60)","v":""},{"$f":"IF('Compost Maturity'!$C$55=\"\",\"\",'Compost Maturity'!$C$55)","v":"Particle Size Analysis - Tex-110-E"},{"$f":"IF('Compost Maturity'!$D$58=\"\",\"\",'Compost Maturity'!$D$58)","v":"Individual Weight Retained (g)"},{"$f":"IF('Compost Maturity'!$C$57=\"\",\"\",'Compost Maturity'!$C$57)","v":"Sieve Size"},{"$f":"IF('Compost Maturity'!$C$60=\"\",\"\",'Compost Maturity'!$C$60)","v":""}]
[37,{"$f":"IF('Compost Maturity'!$E$60=\"\",\"\",'Compost Maturity'!$E$60)","v":""},{"$f":"IF('Compost Maturity'!$C$55=\"\",\"\",'Compost Maturity'!$C$55)","v":"Particle Size Analysis - Tex-110-E"},{"$f":"IF('Compost Maturity'!$E$57=\"\",\"\",'Compost Maturity'!$E$57)","v":"Cumulative Weight Retained"},{"$f":"IF('Compost Maturity'!$C$57=\"\",\"\",'Compost Maturity'!$C$57)","v":"Sieve Size"},{"$f":"IF('Compost Maturity'!$C$60=\"\",\"\",'Compost Maturity'!$C$60)","v":""}]
[38,{"$f":"IF('Compost Maturity'!$F$60=\"\",\"\",'Compost Maturity'!$F$60)","v":""},{"$f":"IF('Compost Maturity'!$C$55=\"\",\"\",'Compost Maturity'!$C$55)","v":"Particle Size Analysis - Tex-110-E"},{"$f":"IF('Compost Maturity'!$F$57=\"\",\"\",'Compost Maturity'!$F$57)","v":"Cumulative Percent Retained"},{"$f":"IF('Compost Maturity'!$C$57=\"\",\"\",'Compost Maturity'!$C$57)","v":"Sieve Size"},{"$f":"IF('Compost Maturity'!$C$60=\"\",\"\",'Compost Maturity'!$C$60)","v":""}]
[39,{"$f":"IF('Compost Maturity'!$G$60=\"\",\"\",'Compost Maturity'!$G$60)","v":""},{"$f":"IF('Compost Maturity'!$C$55=\"\",\"\",'Compost Maturity'!$C$55)","v":"Particle Size Analysis - Tex-110-E"},{"$f":"IF('Compost Maturity'!$G$57=\"\",\"\",'Compost Maturity'!$G$57)","v":"Lower Spec Limit, (%)"},{"$f":"IF('Compost Maturity'!$C$57=\"\",\"\",'Compost Maturity'!$C$57)","v":"Sieve Size"},{"$f":"IF('Compost Maturity'!$C$60=\"\",\"\",'Compost Maturity'!$C$60)","v":""}]
[40,{"$f":"IF('Compost Maturity'!$H$60=\"\",\"\",'Compost Maturity'!$H$60)","v":""},{"$f":"IF('Compost Maturity'!$C$55=\"\",\"\",'Compost Maturity'!$C$55)","v":"Particle Size Analysis - Tex-110-E"},{"$f":"IF('Compost Maturity'!$H$57=\"\",\"\",'Compost Maturity'!$H$57)","v":"Upper Spec Limit, (%)"},{"$f":"IF('Compost Maturity'!$C$57=\"\",\"\",'Compost Maturity'!$C$57)","v":"Sieve Size"},{"$f":"IF('Compost Maturity'!$C$60=\"\",\"\",'Compost Maturity'!$C$60)","v":""}]
[41,{"$f":"IF('Compost Maturity'!$I$60=\"\",\"\",'Compost Maturity'!$I$60)","v":""},{"$f":"IF('Compost Maturity'!$C$55=\"\",\"\",'Compost Maturity'!$C$55)","v":"Particle Size Analysis - Tex-110-E"},{"$f":"IF('Compost Maturity'!$I$57=\"\",\"\",'Compost Maturity'!$I$57)","v":"Within Specs."},{"$f":"IF('Compost Maturity'!$C$57=\"\",\"\",'Compost Maturity'!$C$57)","v":"Sieve Size"},{"$f":"IF('Compost Maturity'!$C$60=\"\",\"\",'Compost Maturity'!$C$60)","v":""}]
[42,{"$f":"IF('Compost Maturity'!$D$61=\"\",\"\",'Compost Maturity'!$D$61)","v":""},{"$f":"IF('Compost Maturity'!$C$55=\"\",\"\",'Compost Maturity'!$C$55)","v":"Particle Size Analysis - Tex-110-E"},{"$f":"IF('Compost Maturity'!$D$58=\"\",\"\",'Compost Maturity'!$D$58)","v":"Individual Weight Retained (g)"},{"$f":"IF('Compost Maturity'!$C$57=\"\",\"\",'Compost Maturity'!$C$57)","v":"Sieve Size"},{"$f":"IF('Compost Maturity'!$C$61=\"\",\"\",'Compost Maturity'!$C$61)","v":""}]
[43,{"$f":"IF('Compost Maturity'!$E$61=\"\",\"\",'Compost Maturity'!$E$61)","v":""},{"$f":"IF('Compost Maturity'!$C$55=\"\",\"\",'Compost Maturity'!$C$55)","v":"Particle Size Analysis - Tex-110-E"},{"$f":"IF('Compost Maturity'!$E$57=\"\",\"\",'Compost Maturity'!$E$57)","v":"Cumulative Weight Retained"},{"$f":"IF('Compost Maturity'!$C$57=\"\",\"\",'Compost Maturity'!$C$57)","v":"Sieve Size"},{"$f":"IF('Compost Maturity'!$C$61=\"\",\"\",'Compost Maturity'!$C$61)","v":""}]
[44,{"$f":"IF('Compost Maturity'!$F$61=\"\",\"\",'Compost Maturity'!$F$61)","v":""},{"$f":"IF('Compost Maturity'!$C$55=\"\",\"\",'Compost Maturity'!$C$55)","v":"Particle Size Analysis - Tex-110-E"},{"$f":"IF('Compost Maturity'!$F$57=\"\",\"\",'Compost Maturity'!$F$57)","v":"Cumulative Percent Retained"},{"$f":"IF('Compost Maturity'!$C$57=\"\",\"\",'Compost Maturity'!$C$57)","v":"Sieve Size"},{"$f":"IF('Compost Maturity'!$C$61=\"\",\"\",'Compost Maturity'!$C$61)","v":""}]
[45,{"$f":"IF('Compost Maturity'!$G$61=\"\",\"\",'Compost Maturity'!$G$61)","v":""},{"$f":"IF('Compost Maturity'!$C$55=\"\",\"\",'Compost Maturity'!$C$55)","v":"Particle Size Analysis - Tex-110-E"},{"$f":"IF('Compost Maturity'!$G$57=\"\",\"\",'Compost Maturity'!$G$57)","v":"Lower Spec Limit, (%)"},{"$f":"IF('Compost Maturity'!$C$57=\"\",\"\",'Compost Maturity'!$C$57)","v":"Sieve Size"},{"$f":"IF('Compost Maturity'!$C$61=\"\",\"\",'Compost Maturity'!$C$61)","v":""}]
[46,{"$f":"IF('Compost Maturity'!$H$61=\"\",\"\",'Compost Maturity'!$H$61)","v":""},{"$f":"IF('Compost Maturity'!$C$55=\"\",\"\",'Compost Maturity'!$C$55)","v":"Particle Size Analysis - Tex-110-E"},{"$f":"IF('Compost Maturity'!$H$57=\"\",\"\",'Compost Maturity'!$H$57)","v":"Upper Spec Limit, (%)"},{"$f":"IF('Compost Maturity'!$C$57=\"\",\"\",'Compost Maturity'!$C$57)","v":"Sieve Size"},{"$f":"IF('Compost Maturity'!$C$61=\"\",\"\",'Compost Maturity'!$C$61)","v":""}]
[47,{"$f":"IF('Compost Maturity'!$I$61=\"\",\"\",'Compost Maturity'!$I$61)","v":""},{"$f":"IF('Compost Maturity'!$C$55=\"\",\"\",'Compost Maturity'!$C$55)","v":"Particle Size Analysis - Tex-110-E"},{"$f":"IF('Compost Maturity'!$I$57=\"\",\"\",'Compost Maturity'!$I$57)","v":"Within Specs."},{"$f":"IF('Compost Maturity'!$C$57=\"\",\"\",'Compost Maturity'!$C$57)","v":"Sieve Size"},{"$f":"IF('Compost Maturity'!$C$61=\"\",\"\",'Compost Maturity'!$C$61)","v":""}]
[48,{"$f":"IF('Compost Maturity'!$D$62=\"\",\"\",'Compost Maturity'!$D$62)","v":""},{"$f":"IF('Compost Maturity'!$C$55=\"\",\"\",'Compost Maturity'!$C$55)","v":"Particle Size Analysis - Tex-110-E"},{"$f":"IF('Compost Maturity'!$D$58=\"\",\"\",'Compost Maturity'!$D$58)","v":"Individual Weight Retained (g)"},{"$f":"IF('Compost Maturity'!$C$57=\"\",\"\",'Compost Maturity'!$C$57)","v":"Sieve Size"},{"$f":"IF('Compost Maturity'!$C$62=\"\",\"\",'Compost Maturity'!$C$62)","v":""}]
[49,{"$f":"IF('Compost Maturity'!$E$62=\"\",\"\",'Compost Maturity'!$E$62)","v":""},{"$f":"IF('Compost Maturity'!$C$55=\"\",\"\",'Compost Maturity'!$C$55)","v":"Particle Size Analysis - Tex-110-E"},{"$f":"IF('Compost Maturity'!$E$57=\"\",\"\",'Compost Maturity'!$E$57)","v":"Cumulative Weight Retained"},{"$f":"IF('Compost Maturity'!$C$57=\"\",\"\",'Compost Maturity'!$C$57)","v":"Sieve Size"},{"$f":"IF('Compost Maturity'!$C$62=\"\",\"\",'Compost Maturity'!$C$62)","v":""}]
[50,{"$f":"IF('Compost Maturity'!$F$62=\"\",\"\",'Compost Maturity'!$F$62)","v":""},{"$f":"IF('Compost Maturity'!$C$55=\"\",\"\",'Compost Maturity'!$C$55)","v":"Particle Size Analysis - Tex-110-E"},{"$f":"IF('Compost Maturity'!$F$57=\"\",\"\",'Compost Maturity'!$F$57)","v":"Cumulative Percent Retained"},{"$f":"IF('Compost Maturity'!$C$57=\"\",\"\",'Compost Maturity'!$C$57)","v":"Sieve Size"},{"$f":"IF('Compost Maturity'!$C$62=\"\",\"\",'Compost Maturity'!$C$62)","v":""}]
[51,{"$f":"IF('Compost Maturity'!$G$62=\"\",\"\",'Compost Maturity'!$G$62)","v":""},{"$f":"IF('Compost Maturity'!$C$55=\"\",\"\",'Compost Maturity'!$C$55)","v":"Particle Size Analysis - Tex-110-E"},{"$f":"IF('Compost Maturity'!$G$57=\"\",\"\",'Compost Maturity'!$G$57)","v":"Lower Spec Limit, (%)"},{"$f":"IF('Compost Maturity'!$C$57=\"\",\"\",'Compost Maturity'!$C$57)","v":"Sieve Size"},{"$f":"IF('Compost Maturity'!$C$62=\"\",\"\",'Compost Maturity'!$C$62)","v":""}]
[52,{"$f":"IF('Compost Maturity'!$H$62=\"\",\"\",'Compost Maturity'!$H$62)","v":""},{"$f":"IF('Compost Maturity'!$C$55=\"\",\"\",'Compost Maturity'!$C$55)","v":"Particle Size Analysis - Tex-110-E"},{"$f":"IF('Compost Maturity'!$H$57=\"\",\"\",'Compost Maturity'!$H$57)","v":"Upper Spec Limit, (%)"},{"$f":"IF('Compost Maturity'!$C$57=\"\",\"\",'Compost Maturity'!$C$57)","v":"Sieve Size"},{"$f":"IF('Compost Maturity'!$C$62=\"\",\"\",'Compost Maturity'!$C$62)","v":""}]
[53,{"$f":"IF('Compost Maturity'!$I$62=\"\",\"\",'Compost Maturity'!$I$62)","v":""},{"$f":"IF('Compost Maturity'!$C$55=\"\",\"\",'Compost Maturity'!$C$55)","v":"Particle Size Analysis - Tex-110-E"},{"$f":"IF('Compost Maturity'!$I$57=\"\",\"\",'Compost Maturity'!$I$57)","v":"Within Specs."},{"$f":"IF('Compost Maturity'!$C$57=\"\",\"\",'Compost Maturity'!$C$57)","v":"Sieve Size"},{"$f":"IF('Compost Maturity'!$C$62=\"\",\"\",'Compost Maturity'!$C$62)","v":""}]
[54,{"$f":"IF('Compost Maturity'!$D$63=\"\",\"\",'Compost Maturity'!$D$63)","v":""},{"$f":"IF('Compost Maturity'!$C$55=\"\",\"\",'Compost Maturity'!$C$55)","v":"Particle Size Analysis - Tex-110-E"},{"$f":"IF('Compost Maturity'!$D$58=\"\",\"\",'Compost Maturity'!$D$58)","v":"Individual Weight Retained (g)"},{"$f":"IF('Compost Maturity'!$C$57=\"\",\"\",'Compost Maturity'!$C$57)","v":"Sieve Size"},{"$f":"IF('Compost Maturity'!$C$63=\"\",\"\",'Compost Maturity'!$C$63)","v":""}]
[55,{"$f":"IF('Compost Maturity'!$E$63=\"\",\"\",'Compost Maturity'!$E$63)","v":""},{"$f":"IF('Compost Maturity'!$C$55=\"\",\"\",'Compost Maturity'!$C$55)","v":"Particle Size Analysis - Tex-110-E"},{"$f":"IF('Compost Maturity'!$E$57=\"\",\"\",'Compost Maturity'!$E$57)","v":"Cumulative Weight Retained"},{"$f":"IF('Compost Maturity'!$C$57=\"\",\"\",'Compost Maturity'!$C$57)","v":"Sieve Size"},{"$f":"IF('Compost Maturity'!$C$63=\"\",\"\",'Compost Maturity'!$C$63)","v":""}]
[56,{"$f":"IF('Compost Maturity'!$F$63=\"\",\"\",'Compost Maturity'!$F$63)","v":""},{"$f":"IF('Compost Maturity'!$C$55=\"\",\"\",'Compost Maturity'!$C$55)","v":"Particle Size Analysis - Tex-110-E"},{"$f":"IF('Compost Maturity'!$F$57=\"\",\"\",'Compost Maturity'!$F$57)","v":"Cumulative Percent Retained"},{"$f":"IF('Compost Maturity'!$C$57=\"\",\"\",'Compost Maturity'!$C$57)","v":"Sieve Size"},{"$f":"IF('Compost Maturity'!$C$63=\"\",\"\",'Compost Maturity'!$C$63)","v":""}]
[57,{"$f":"IF('Compost Maturity'!$G$63=\"\",\"\",'Compost Maturity'!$G$63)","v":""},{"$f":"IF('Compost Maturity'!$C$55=\"\",\"\",'Compost Maturity'!$C$55)","v":"Particle Size Analysis - Tex-110-E"},{"$f":"IF('Compost Maturity'!$G$57=\"\",\"\",'Compost Maturity'!$G$57)","v":"Lower Spec Limit, (%)"},{"$f":"IF('Compost Maturity'!$C$57=\"\",\"\",'Compost Maturity'!$C$57)","v":"Sieve Size"},{"$f":"IF('Compost Maturity'!$C$63=\"\",\"\",'Compost Maturity'!$C$63)","v":""}]
[58,{"$f":"IF('Compost Maturity'!$H$63=\"\",\"\",'Compost Maturity'!$H$63)","v":""},{"$f":"IF('Compost Maturity'!$C$55=\"\",\"\",'Compost Maturity'!$C$55)","v":"Particle Size Analysis - Tex-110-E"},{"$f":"IF('Compost Maturity'!$H$57=\"\",\"\",'Compost Maturity'!$H$57)","v":"Upper Spec Limit, (%)"},{"$f":"IF('Compost Maturity'!$C$57=\"\",\"\",'Compost Maturity'!$C$57)","v":"Sieve Size"},{"$f":"IF('Compost Maturity'!$C$63=\"\",\"\",'Compost Maturity'!$C$63)","v":""}]
[59,{"$f":"IF('Compost Maturity'!$I$63=\"\",\"\",'Compost Maturity'!$I$63)","v":""},{"$f":"IF('Compost Maturity'!$C$55=\"\",\"\",'Compost Maturity'!$C$55)","v":"Particle Size Analysis - Tex-110-E"},{"$f":"IF('Compost Maturity'!$I$57=\"\",\"\",'Compost Maturity'!$I$57)","v":"Within Specs."},{"$f":"IF('Compost Maturity'!$C$57=\"\",\"\",'Compost Maturity'!$C$57)","v":"Sieve Size"},{"$f":"IF('Compost Maturity'!$C$63=\"\",\"\",'Compost Maturity'!$C$63)","v":""}]
[60,{"$f":"IF('Compost Maturity'!$D$64=\"\",\"\",'Compost Maturity'!$D$64)","v":""},{"$f":"IF('Compost Maturity'!$C$55=\"\",\"\",'Compost Maturity'!$C$55)","v":"Particle Size Analysis - Tex-110-E"},{"$f":"IF('Compost Maturity'!$D$58=\"\",\"\",'Compost Maturity'!$D$58)","v":"Individual Weight Retained (g)"},{"$f":"IF('Compost Maturity'!$C$57=\"\",\"\",'Compost Maturity'!$C$57)","v":"Sieve Size"},{"$f":"IF('Compost Maturity'!$C$64=\"\",\"\",'Compost Maturity'!$C$64)","v":""}]
[61,{"$f":"IF('Compost Maturity'!$E$64=\"\",\"\",'Compost Maturity'!$E$64)","v":""},{"$f":"IF('Compost Maturity'!$C$55=\"\",\"\",'Compost Maturity'!$C$55)","v":"Particle Size Analysis - Tex-110-E"},{"$f":"IF('Compost Maturity'!$E$57=\"\",\"\",'Compost Maturity'!$E$57)","v":"Cumulative Weight Retained"},{"$f":"IF('Compost Maturity'!$C$57=\"\",\"\",'Compost Maturity'!$C$57)","v":"Sieve Size"},{"$f":"IF('Compost Maturity'!$C$64=\"\",\"\",'Compost Maturity'!$C$64)","v":""}]
[62,{"$f":"IF('Compost Maturity'!$F$64=\"\",\"\",'Compost Maturity'!$F$64)","v":""},{"$f":"IF('Compost Maturity'!$C$55=\"\",\"\",'Compost Maturity'!$C$55)","v":"Particle Size Analysis - Tex-110-E"},{"$f":"IF('Compost Maturity'!$F$57=\"\",\"\",'Compost Maturity'!$F$57)","v":"Cumulative Percent Retained"},{"$f":"IF('Compost Maturity'!$C$57=\"\",\"\",'Compost Maturity'!$C$57)","v":"Sieve Size"},{"$f":"IF('Compost Maturity'!$C$64=\"\",\"\",'Compost Maturity'!$C$64)","v":""}]
[63,{"$f":"IF('Compost Maturity'!$G$64=\"\",\"\",'Compost Maturity'!$G$64)","v":""},{"$f":"IF('Compost Maturity'!$C$55=\"\",\"\",'Compost Maturity'!$C$55)","v":"Particle Size Analysis - Tex-110-E"},{"$f":"IF('Compost Maturity'!$G$57=\"\",\"\",'Compost Maturity'!$G$57)","v":"Lower Spec Limit, (%)"},{"$f":"IF('Compost Maturity'!$C$57=\"\",\"\",'Compost Maturity'!$C$57)","v":"Sieve Size"},{"$f":"IF('Compost Maturity'!$C$64=\"\",\"\",'Compost Maturity'!$C$64)","v":""}]
[64,{"$f":"IF('Compost Maturity'!$H$64=\"\",\"\",'Compost Maturity'!$H$64)","v":""},{"$f":"IF('Compost Maturity'!$C$55=\"\",\"\",'Compost Maturity'!$C$55)","v":"Particle Size Analysis - Tex-110-E"},{"$f":"IF('Compost Maturity'!$H$57=\"\",\"\",'Compost Maturity'!$H$57)","v":"Upper Spec Limit, (%)"},{"$f":"IF('Compost Maturity'!$C$57=\"\",\"\",'Compost Maturity'!$C$57)","v":"Sieve Size"},{"$f":"IF('Compost Maturity'!$C$64=\"\",\"\",'Compost Maturity'!$C$64)","v":""}]
[65,{"$f":"IF('Compost Maturity'!$I$64=\"\",\"\",'Compost Maturity'!$I$64)","v":""},{"$f":"IF('Compost Maturity'!$C$55=\"\",\"\",'Compost Maturity'!$C$55)","v":"Particle Size Analysis - Tex-110-E"},{"$f":"IF('Compost Maturity'!$I$57=\"\",\"\",'Compost Maturity'!$I$57)","v":"Within Specs."},{"$f":"IF('Compost Maturity'!$C$57=\"\",\"\",'Compost Maturity'!$C$57)","v":"Sieve Size"},{"$f":"IF('Compost Maturity'!$C$64=\"\",\"\",'Compost Maturity'!$C$64)","v":""}]
[66,{"$f":"IF('Compost Maturity'!$D$65=\"\",\"\",'Compost Maturity'!$D$65)","v":""},{"$f":"IF('Compost Maturity'!$C$55=\"\",\"\",'Compost Maturity'!$C$55)","v":"Particle Size Analysis - Tex-110-E"},{"$f":"IF('Compost Maturity'!$D$58=\"\",\"\",'Compost Maturity'!$D$58)","v":"Individual Weight Retained (g)"},{"$f":"IF('Compost Maturity'!$C$57=\"\",\"\",'Compost Maturity'!$C$57)","v":"Sieve Size"},{"$f":"IF('Compost Maturity'!$C$65=\"\",\"\",'Compost Maturity'!$C$65)","v":""}]
[67,{"$f":"IF('Compost Maturity'!$E$65=\"\",\"\",'Compost Maturity'!$E$65)","v":""},{"$f":"IF('Compost Maturity'!$C$55=\"\",\"\",'Compost Maturity'!$C$55)","v":"Particle Size Analysis - Tex-110-E"},{"$f":"IF('Compost Maturity'!$E$57=\"\",\"\",'Compost Maturity'!$E$57)","v":"Cumulative Weight Retained"},{"$f":"IF('Compost Maturity'!$C$57=\"\",\"\",'Compost Maturity'!$C$57)","v":"Sieve Size"},{"$f":"IF('Compost Maturity'!$C$65=\"\",\"\",'Compost Maturity'!$C$65)","v":""}]
[68,{"$f":"IF('Compost Maturity'!$F$65=\"\",\"\",'Compost Maturity'!$F$65)","v":""},{"$f":"IF('Compost Maturity'!$C$55=\"\",\"\",'Compost Maturity'!$C$55)","v":"Particle Size Analysis - Tex-110-E"},{"$f":"IF('Compost Maturity'!$F$57=\"\",\"\",'Compost Maturity'!$F$57)","v":"Cumulative Percent Retained"},{"$f":"IF('Compost Maturity'!$C$57=\"\",\"\",'Compost Maturity'!$C$57)","v":"Sieve Size"},{"$f":"IF('Compost Maturity'!$C$65=\"\",\"\",'Compost Maturity'!$C$65)","v":""}]
[69,{"$f":"IF('Compost Maturity'!$G$65=\"\",\"\",'Compost Maturity'!$G$65)","v":""},{"$f":"IF('Compost Maturity'!$C$55=\"\",\"\",'Compost Maturity'!$C$55)","v":"Particle Size Analysis - Tex-110-E"},{"$f":"IF('Compost Maturity'!$G$57=\"\",\"\",'Compost Maturity'!$G$57)","v":"Lower Spec Limit, (%)"},{"$f":"IF('Compost Maturity'!$C$57=\"\",\"\",'Compost Maturity'!$C$57)","v":"Sieve Size"},{"$f":"IF('Compost Maturity'!$C$65=\"\",\"\",'Compost Maturity'!$C$65)","v":""}]
[70,{"$f":"IF('Compost Maturity'!$H$65=\"\",\"\",'Compost Maturity'!$H$65)","v":""},{"$f":"IF('Compost Maturity'!$C$55=\"\",\"\",'Compost Maturity'!$C$55)","v":"Particle Size Analysis - Tex-110-E"},{"$f":"IF('Compost Maturity'!$H$57=\"\",\"\",'Compost Maturity'!$H$57)","v":"Upper Spec Limit, (%)"},{"$f":"IF('Compost Maturity'!$C$57=\"\",\"\",'Compost Maturity'!$C$57)","v":"Sieve Size"},{"$f":"IF('Compost Maturity'!$C$65=\"\",\"\",'Compost Maturity'!$C$65)","v":""}]
[71,{"$f":"IF('Compost Maturity'!$I$65=\"\",\"\",'Compost Maturity'!$I$65)","v":""},{"$f":"IF('Compost Maturity'!$C$55=\"\",\"\",'Compost Maturity'!$C$55)","v":"Particle Size Analysis - Tex-110-E"},{"$f":"IF('Compost Maturity'!$I$57=\"\",\"\",'Compost Maturity'!$I$57)","v":"Within Specs."},{"$f":"IF('Compost Maturity'!$C$57=\"\",\"\",'Compost Maturity'!$C$57)","v":"Sieve Size"},{"$f":"IF('Compost Maturity'!$C$65=\"\",\"\",'Compost Maturity'!$C$65)","v":""}]
[72,{"$f":"IF('Compost Maturity'!$D$66=\"\",\"\",'Compost Maturity'!$D$66)","v":""},{"$f":"IF('Compost Maturity'!$C$55=\"\",\"\",'Compost Maturity'!$C$55)","v":"Particle Size Analysis - Tex-110-E"},{"$f":"IF('Compost Maturity'!$D$58=\"\",\"\",'Compost Maturity'!$D$58)","v":"Individual Weight Retained (g)"},{"$f":"IF('Compost Maturity'!$C$57=\"\",\"\",'Compost Maturity'!$C$57)","v":"Sieve Size"},{"$f":"IF('Compost Maturity'!$C$66=\"\",\"\",'Compost Maturity'!$C$66)","v":"-"}]
[73,{"$f":"IF('Compost Maturity'!$D$67=\"\",\"\",'Compost Maturity'!$D$67)","v":""},{"$f":"IF('Compost Maturity'!$C$55=\"\",\"\",'Compost Maturity'!$C$55)","v":"Particle Size Analysis - Tex-110-E"},{"$f":"IF('Compost Maturity'!$D$58=\"\",\"\",'Compost Maturity'!$D$58)","v":"Individual Weight Retained (g)"},{"$f":"IF('Compost Maturity'!$C$57=\"\",\"\",'Compost Maturity'!$C$57)","v":"Sieve Size"},{"$f":"IF('Compost Maturity'!$C$67=\"\",\"\",'Compost Maturity'!$C$67)","v":"Total:"}]
[74,{"$f":"IF('Compost Maturity'!$F$71=\"\",\"\",'Compost Maturity'!$F$71)","v":""},{"$f":"IF('Compost Maturity'!$C$69=\"\",\"\",'Compost Maturity'!$C$69)","v":"SOLVITA™ Compost Maturity Test "},{"$f":"IF('Compost Maturity'!$C$71=\"\",\"\",'Compost Maturity'!$C$71)","v":"Ammonia Test Result, (NH3):"}]
[75,{"$f":"IF('Compost Maturity'!$F$73=\"\",\"\",'Compost Maturity'!$F$73)","v":""},{"$f":"IF('Compost Maturity'!$C$69=\"\",\"\",'Compost Maturity'!$C$69)","v":"SOLVITA™ Compost Maturity Test "},{"$f":"IF('Compost Maturity'!$C$73=\"\",\"\",'Compost Maturity'!$C$73)","v":"Carbon Dioxide Test Result, (CO2):"}]
[76,{"$f":"IF('Compost Maturity'!$F$75=\"\",\"\",'Compost Maturity'!$F$75)","v":""},{"$f":"IF('Compost Maturity'!$C$69=\"\",\"\",'Compost Maturity'!$C$69)","v":"SOLVITA™ Compost Maturity Test "},{"$f":"IF('Compost Maturity'!$C$75=\"\",\"\",'Compost Maturity'!$C$75)","v":"SOLVITA Maturity Index:"}]
[77,{"$f":"IF('Compost Maturity'!$H$75=\"\",\"\",'Compost Maturity'!$H$75)","v":"7-8"},{"$f":"IF('Compost Maturity'!$C$69=\"\",\"\",'Compost Maturity'!$C$69)","v":"SOLVITA™ Compost Maturity Test "},{"$f":"IF('Compost Maturity'!$C$75=\"\",\"\",'Compost Maturity'!$C$75)","v":"SOLVITA Maturity Index:"},{"$f":"IF('Compost Maturity'!$G$75=\"\",\"\",'Compost Maturity'!$G$75)","v":"Limits, (%):"}]

{"sheet":"GRADATIONS","index":2,"n_rows":56,"n_cols":18,"rows_kept":56,"cut":false,"hidden":true,"merged":[[4,0,5,0],[2,0,3,0],[55,7,57,17],[37,7,37,26],[47,9,47,17],[47,7,53,7],[46,7,46,17],[42,7,42,26],[43,7,43,26],[44,7,44,26],[38,7,38,26],[39,7,39,26],[40,7,40,26],[41,7,41,26],[6,0,12,0]]}
["Grade","Diameter size mm","\"1993\" Sieve Size","\"1995\" Sieve Size","Min","Max"]
["TopSoil",25,"1\"","25 mm",0,0]
["Erosion",76,"3\"","76 mm",0,0]
[null,50,"2\"","50 mm",30,100]
["General",19,"3/4\"","19 mm",0,0]
[null,0.85,"No. 20",".85 µm",30,100]
["Grade 6 User Input",152,"6\"","152 mm",100,100]
[null,76,"3\"","76 mm",90,100]
[]
[]
[]
[]
[]
[]
["Size","English","Metric","Selection"]
[152,"6\"","152 mm",{"$f":"IF(specyear=\"\",\"\",IF(specyear=\"1995\",C16,B16))","v":""}]
[76,"3\"","76 mm",""]
[63,"2-1/2\"","63 mm",""]
[50,"2\"","50 mm",""]
[45,"1-3/4\"","45 mm",""]
[37.5,"1-1/2\"","37.5 mm",""]
[31.5,"1-1/4\"","31.5 mm",""]
[25,"1\"","25 mm",""]
[22.4,"7/8\"","22.4 mm",""]
[19,"3/4\"","19 mm",""]
[16,"5/8\"","16 mm",""]
[12.5,"1/2\"","12.5 mm",""]
[11.2,"7/16\"","11.2 mm",""]
[9.5,"3/8\"","9.5 mm",""]
[8,"5/16\"","8 mm",""]
[6.3,"1/4\"","6.3 mm",""]
[4.75,"No. 4","4.75 mm",""]
[3.35,"No. 6","3.35 mm",""]
[2.36,"No. 8","2.36 mm",""]
[2,"No. 10","2 mm",""]
[1.4,"No. 14","1.4 mm",""]
[1.18,"No. 16","1.18 mm","",null,null,"STAGES OF THE COMPOSTING PROCESS IS:"]
[0.85,"No. 20",".85 µm","",null,null,1,"Fresh, raw compost; typical of new mixes; extremely high rate of decomposition; putrescible or very odorous material: “RAW” compost."]
[0.6,"No. 30",".6 µm","",null,null,2,"Very active, putrescible fresh compost; high-respiration rate; needs very intensive aeration and/or turning: “RAW” compost."]
[0.42499999999999999,"No. 40",".425 µm","",null,null,3,"Active compost; fresh ingredients, still needs intensive oversight and management: \"VERY ACTIVE\" compost."]
[0.3,"No. 50",".3 µm","",null,null,4,"Compost in medium or moderately active stage of decomposition; needs on-going management: \"VERY ACTIVE\" compost."]
[0.18,"No. 80",".18 µm","",null,null,5,"Compost is moving past the active phase of decomposition and ready for curing; reduced need for intensive handling: \"ACTIVE\" compost"]
[0.15,"No. 100",".15 µm","",null,null,6,"Curing; aeration requirement reduced; compost ready for piling; signiﬁcantly reduced management requirements: \"CURING\" compost."]
[7.4999999999999997E-2,"No. 200",".075 µm","",null,null,7,"Well matured, aged compost, cured; few limitations for usage: “FINISHED” compost."]
[null,null,null,null,null,null,8,"Inactive, highly matured compost, very well aged, possibly over-aged, like soil; no limitations for usage: “FINISHED” compost."]
[]
[null,null,null,null,null,null,null,"SOLVITA™ COMPOST MATURITY INDEX"]
[null,null,null,null,null,null,null,"Ammonia Test Result",null,"Carbon Dioxide Test Result"]
[null,null,null,null,null,null,null,null,null,null,1,2,3,4,5,6,7,8]
[null,null,null,null,null,null,null,null,1,"Very High NH3",1,1,1,1,1,2,3,4]
[null,null,null,null,null,null,null,null,2,"High NH3",1,1,1,2,3,4,5,6]
[null,null,null,null,null,null,null,null,3,"Medium NH3",1,1,2,3,4,5,6,7]
[null,null,null,null,null,null,null,null,4,"Low NH3",1,2,3,4,5,6,7,8]
[null,null,null,null,null,null,null,null,5,"Very Low NH3",1,2,3,4,5,6,7,8]
[]
[null,null,null,null,null,null,null,{"$f":"IF(ISERROR(VLOOKUP(maturity,DataRange2,2,FALSE)),\"\",VLOOKUP(maturity,DataRange2,2,FALSE))","v":""}]